bitfinex/quotes_BTCUSD_20220304
["timestamp","ask_amount","ask_price","bid_price","bid_amount"]
[1646417287634,0.061128,40925.0,40921.0,0.00021541]
[1646417288635,0.061128,40925.0,40920.0,0.1]
[1646417288831,0.061128,40925.0,40922.0,0.26449095]
[1646417289932,0.061128,40925.0,40920.0,0.1]
[1646417290134,0.061128,40925.0,40921.0,0.00621541]
[1646417290980,0.061128,40925.0,40921.0,0.006]
[1646417291186,0.061128,40925.0,40921.0,0.00621541]
[1646417291382,0.24692996,40925.0,40921.0,0.00021541]
[1646417291782,0.366696,40924.0,40921.0,0.00021541]
[1646417291983,0.337027,40924.0,40921.0,0.00021541]
[1646417292182,0.337027,40924.0,40915.0,0.003]
[1646417292382,0.24692996,40925.0,40920.0,0.00021541]
[1646417292583,0.366696,40924.0,40920.0,0.00021541]
[1646417292982,0.337027,40922.0,40920.0,0.00021541]
[1646417293484,0.337027,40922.0,40914.0,0.1]
[1646417293786,0.29790942,40922.0,40919.0,0.00021542]
[1646417294184,0.366696,40921.0,40919.0,0.00021542]
[1646417294431,0.29790942,40922.0,40919.0,0.00021542]
[1646417294732,0.29790942,40922.0,40914.0,0.4]
[1646417294931,0.366696,40921.0,40918.0,0.00021542]
[1646417295935,0.29790942,40922.0,40914.0,0.4]
[1646417296133,0.29790942,40922.0,40917.0,0.002]
[1646417297135,0.15644083,40918.0,40917.0,0.002]
[1646417297336,0.15644083,40918.0,40917.0,0.00221542]
[1646417297535,0.15644083,40918.0,40917.0,0.00021542]
[1646417298180,0.15644083,40918.0,40916.0,0.003]
[1646417298386,0.21759083,40918.0,40916.0,0.003]
[1646417298887,0.366696,40917.0,40916.0,0.003]
[1646417299481,0.21759083,40918.0,40911.0,0.1194]
[1646417299681,0.366696,40917.0,40914.0,0.00021543]
[1646417299881,0.21759083,40918.0,40914.0,0.00021543]
[1646417300581,0.30087776,40915.0,40911.0,0.1]
[1646417300784,0.30087776,40915.0,40914.0,0.00021543]
[1646417300785,0.36203076,40915.0,40914.0,0.00021543]
[1646417301853,0.36203076,40915.0,40911.0,0.1]
[1646417302056,0.36203076,40915.0,40912.0,0.00021544]
[1646417302452,0.41203076,40915.0,40912.0,0.00021544]
[1646417303053,0.41203076,40915.0,40911.0,0.4]
[1646417303054,0.41203076,40915.0,40911.0,0.1]
[1646417303353,0.41203076,40915.0,40911.0,0.00021544]
[1646417303954,0.20885973,40914.0,40911.0,0.00021544]
[1646417304157,0.20885973,40914.0,40910.0,0.09000001]
[1646417304355,0.20885973,40914.0,40910.0,0.09021546]
[1646417304555,0.41203076,40915.0,40910.0,0.09021546]
[1646417305455,0.41203076,40915.0,40910.0,0.09000001]
[1646417305685,0.41203076,40915.0,40910.0,0.09021546]
[1646417306084,0.41203076,40915.0,40911.0,0.25625514]
[1646417306291,0.41203076,40915.0,40911.0,0.35625514]
[1646417306484,0.41203076,40915.0,40911.0,0.1]
[1646417306887,0.41203076,40915.0,40911.0,0.10021544]
[1646417307286,0.41203076,40915.0,40911.0,0.10014667]
[1646417307487,0.41203076,40915.0,40911.0,0.00021544]
[1646417307686,0.061153,40920.0,40912.0,0.06198803]
[1646417307889,0.0489,40929.0,40913.0,0.516696]
[1646417307890,0.05,40928.0,40913.0,0.516696]
[1646417308087,0.05,40928.0,40918.0,1.113896]
[1646417308288,0.5,40927.0,40922.0,0.7472]
[1646417308588,0.061123,40935.0,40924.0,1.113896]
[1646417308787,0.29168638,40932.0,40925.0,0.366696]
[1646417308987,0.29168638,40932.0,40929.0,0.25951328]
[1646417309191,0.29168638,40932.0,40928.0,0.1]
[1646417309633,0.29168638,40932.0,40926.0,0.4]
[1646417309931,0.29168638,40932.0,40927.0,0.466696]
[1646417310232,0.29168638,40932.0,40930.0,0.22254532]
[1646417310631,0.34168638,40932.0,40930.0,0.22254532]
[1646417310831,0.34168638,40932.0,40931.0,0.366696]
[1646417311031,0.05,40932.0,40931.0,0.666696]
[1646417311231,0.061117,40939.0,40931.0,1.562796]
[1646417311432,2.92925667,40946.0,40933.0,0.7472]
[1646417311634,0.04972942,40942.0,40934.0,0.3489]
[1646417311934,0.00080579,40942.0,40934.0,0.4489]
[1646417312130,0.32754768,40938.0,40935.0,0.366696]
[1646417313185,0.37754768,40938.0,40935.0,0.366696]
[1646417313684,0.37754768,40938.0,40934.0,0.4489]
[1646417313685,0.37754768,40938.0,40934.0,0.1489]
[1646417313884,0.37754768,40938.0,40935.0,0.366696]
[1646417314083,0.37754768,40938.0,40934.0,0.1489]
[1646417314084,0.37754768,40938.0,40934.0,0.0489]
[1646417314685,0.37754768,40938.0,40935.0,0.366696]
[1646417314886,0.37754768,40938.0,40933.0,0.366696]
[1646417315089,0.06112,40937.0,40933.0,0.366696]
[1646417315285,0.06112,40937.0,40935.0,0.366696]
[1646417316086,0.06112,40937.0,40934.0,0.1]
[1646417316287,0.06112,40937.0,40932.0,0.366696]
[1646417316487,0.06112,40937.0,40930.0,0.0489]
[1646417316688,0.06112,40937.0,40932.0,0.1]
[1646417316935,0.366696,40935.0,40929.0,0.004]
[1646417317430,0.366696,40935.0,40926.0,0.3]
[1646417317431,0.337027,40933.0,40926.0,0.3]
[1646417317729,0.30684447,40931.0,40925.0,0.11350286]
[1646417318130,0.57569667,40929.0,40925.0,0.00020286]
[1646417318733,0.57569667,40929.0,40921.0,0.004]
[1646417318934,0.337027,40928.0,40925.0,0.00020285]
[1646417319333,0.387027,40928.0,40925.0,0.00020285]
[1646417319934,0.387027,40928.0,40920.0,0.2475413]
[1646417319935,0.061138,40926.0,40920.0,0.2475413]
[1646417320135,0.061138,40926.0,40924.0,0.00020279]
[1646417320334,0.061138,40926.0,40925.0,0.1]
[1646417328101,0.05,40927.0,40925.0,0.1]
[1646417328302,0.34222264,40928.0,40925.0,0.1]
[1646417328508,0.29222264,40928.0,40925.0,0.1]
[1646417328800,0.05,40927.0,40925.0,0.1]
[1646417331204,0.111137,40927.0,40925.0,0.1]
[1646417331405,0.111137,40927.0,40925.0,0.31390058]
[1646417332032,0.111137,40927.0,40925.0,0.1]
[1646417332332,0.11106635,40927.0,40925.0,0.1]
[1646417334133,0.11106635,40927.0,40925.0,0.3542216]
[1646417334733,0.10606635,40927.0,40925.0,0.3542216]
[1646417335990,0.10606635,40927.0,40926.0,0.1]
[1646417336393,0.04492935,40927.0,40926.0,0.766696]
[1646417336693,0.29222264,40928.0,40926.0,1.538346]
[1646417336893,0.29222264,40928.0,40927.0,1.413896]
[1646417337091,0.29222264,40928.0,40927.0,1.462796]
[1646417337292,0.29222264,40928.0,40927.0,1.562796]
[1646417337894,0.29222264,40928.0,40927.0,0.815596]
[1646417338092,0.34222264,40928.0,40927.0,0.815596]
[1646417342134,0.05,40928.0,40927.0,0.815596]
[1646417342334,0.05,40928.0,40927.0,0.840046]
[1646417342734,0.33081478,40932.0,40927.0,0.840046]
[1646417343083,0.05,40932.0,40931.0,0.366696]
[1646417343286,0.061117,40935.0,40931.0,0.766696]
[1646417343486,0.111117,40935.0,40933.0,0.366696]
[1646417343682,0.111117,40935.0,40934.0,0.1]
[1646417344083,0.37851424,40935.0,40934.0,0.1]
[1646417344483,0.37851424,40935.0,40934.0,0.466696]
[1646417344683,0.37851424,40935.0,40934.0,0.366696]
[1646417345285,0.37851424,40935.0,40928.0,0.366696]
[1646417345486,0.37851424,40935.0,40927.0,0.3]
[1646417345787,0.37851424,40935.0,40926.0,0.1244]
[1646417345788,0.06113339,40933.0,40926.0,0.1244]
[1646417345984,0.05,40928.0,40926.0,0.1244]
[1646417346183,0.05,40928.0,40925.0,0.1]
[1646417346385,0.23342,40932.0,40925.0,0.10020278]
[1646417346587,0.366696,40931.0,40925.0,0.10020278]
[1646417346832,0.337027,40929.0,40925.0,0.10020278]
[1646417347034,0.52661355,40929.0,40925.0,0.10020278]
[1646417347236,0.061137,40928.0,40925.0,0.10020278]
[1646417347433,0.061137,40928.0,40925.0,0.1]
[1646417347635,0.416696,40927.0,40925.0,0.10020278]
[1646417348735,0.05,40927.0,40925.0,0.1]
[1646417349840,0.05,40927.0,40925.0,0.4]
[1646417350040,0.05,40927.0,40925.0,0.1]
[1646417351084,0.20768154,40927.0,40925.0,0.1]
[1646417351684,0.05,40927.0,40925.0,0.1]
[1646417353491,0.05,40927.0,40926.0,0.3]
[1646417354745,0.05,40927.0,40925.0,0.1]
[1646417356835,0.05,40927.0,40925.0,0.00220058]
[1646417357437,0.05,40927.0,40925.0,0.10220058]
[1646417367582,0.366696,40926.0,40925.0,0.10220058]
[1646417370236,0.05,40927.0,40925.0,0.10220058]
[1646417370436,0.366696,40926.0,40925.0,0.10220058]
[1646417371239,0.05,40927.0,40925.0,0.10220058]
[1646417371440,0.366696,40926.0,40925.0,0.10220058]
[1646417374387,0.366696,40926.0,40923.0,0.00020176]
[1646417374388,1.072303,40925.0,40923.0,0.00020176]
[1646417374583,0.34984758,40924.0,40923.0,0.00020176]
[1646417374785,0.90139034,40924.0,40923.0,0.00020176]
[1646417374983,0.90139034,40924.0,40911.0,0.1892]
[1646417374984,1.24699034,40924.0,40911.0,0.1892]
[1646417375185,0.88278394,40920.0,40911.0,0.1892]
[1646417375388,0.122326,40917.0,40911.0,0.1892]
[1646417375586,0.15440237,40915.0,40910.0,0.09000001]
[1646417375786,0.366696,40914.0,40910.0,0.09000001]
[1646417376183,0.416696,40914.0,40910.0,0.09000001]
[1646417376388,0.416696,40914.0,40910.0,0.09020178]
[1646417377237,0.777861,40914.0,40910.0,0.09020178]
[1646417377439,0.777861,40914.0,40910.0,0.09000001]
[1646417377637,0.777861,40914.0,40910.0,0.09020175]
[1646417378439,0.01339008,40913.0,40910.0,0.09020175]
[1646417378638,0.520509,40912.0,40910.0,0.09000001]
[1646417378939,0.570509,40912.0,40910.0,0.09000001]
[1646417380687,0.233482,40912.0,40910.0,0.09000001]
[1646417380989,0.366696,40911.0,40910.0,0.09000001]
[1646417382887,0.366696,40911.0,40908.0,0.00020154]
[1646417383489,0.233482,40912.0,40901.0,0.4]
[1646417383689,0.233482,40912.0,40901.0,0.45]
[1646417383690,0.061155,40908.0,40901.0,0.45]
[1646417384091,0.111155,40908.0,40902.0,0.366696]
[1646417384334,0.111155,40908.0,40904.0,0.366696]
[1646417384533,0.23633488,40906.0,40904.0,0.3]
[1646417384738,0.23633488,40906.0,40905.0,0.466696]
[1646417384934,0.23633488,40906.0,40905.0,0.6995069]
[1646417385134,0.23633488,40906.0,40905.0,0.466696]
[1646417386035,0.24876237,40908.0,40906.0,0.28493905]
[1646417386236,0.24876237,40908.0,40907.0,0.366696]
[1646417386635,0.24876237,40908.0,40907.0,0.466696]
[1646417387438,0.24876237,40908.0,40907.0,0.1]
[1646417387637,0.24876237,40908.0,40907.0,0.466696]
[1646417388088,0.24876237,40908.0,40907.0,0.1]
[1646417388888,0.24876237,40908.0,40906.0,0.366696]
[1646417389089,0.24876237,40908.0,40905.0,0.35020924]
[1646417389489,0.24876237,40908.0,40905.0,0.25]
[1646417390291,0.24876237,40908.0,40906.0,0.366696]
[1646417390690,0.24876237,40908.0,40907.0,0.1]
[1646417391090,0.18760737,40908.0,40907.0,0.1]
[1646417391691,0.18760737,40908.0,40905.0,0.25020924]
[1646417391935,0.18760737,40908.0,40905.0,0.25]
[1646417392133,0.18760737,40908.0,40905.0,0.25019975]
[1646417392330,0.18760737,40908.0,40906.0,0.366696]
[1646417392731,0.18760737,40908.0,40907.0,0.1]
[1646417392930,0.18760737,40908.0,40907.0,0.466696]
[1646417393533,0.18760737,40908.0,40907.0,0.1]
[1646417393732,0.18760737,40908.0,40905.0,0.25020058]
[1646417393933,0.18760737,40908.0,40906.0,0.366696]
[1646417394332,0.18760737,40908.0,40905.0,0.25020058]
[1646417394333,0.18760737,40908.0,40907.0,0.466696]
[1646417395432,0.24876437,40908.0,40907.0,0.466696]
[1646417395884,0.24876437,40908.0,40907.0,0.766696]
[1646417396081,0.233473,40908.0,40907.0,0.766696]
[1646417396783,0.172316,40908.0,40907.0,0.766696]
[1646417400141,0.17877598,40908.0,40907.0,0.766696]
[1646417400348,0.00645998,40908.0,40907.0,1.513896]
[1646417400543,0.061139,40912.0,40909.0,0.366696]
[1646417400738,0.061139,40912.0,40908.0,2.62556097]
[1646417400739,0.061139,40912.0,40911.0,0.666696]
[1646417400940,0.061139,40912.0,40911.0,1.462796]
[1646417401139,0.061139,40912.0,40911.0,0.815596]
[1646417401741,0.122285,40913.0,40911.0,0.815596]
[1646417401941,0.122285,40913.0,40912.0,0.666696]
[1646417402141,0.12214547,40913.0,40912.0,1.562796]
[1646417402343,0.061142,40914.0,40912.0,1.562796]
[1646417402540,0.061142,40914.0,40913.0,1.0472]
[1646417402742,0.061142,40914.0,40913.0,1.513896]
[1646417403087,0.061142,40914.0,40913.0,0.766696]
[1646417403489,0.061142,40914.0,40913.0,0.815596]
[1646417406841,0.061142,40914.0,40913.0,0.71796074]
[1646417407043,0.061142,40914.0,40913.0,0.515596]
[1646417407644,0.26870679,40914.0,40913.0,0.466696]
[1646417407844,0.07509132,40914.0,40913.0,0.366696]
[1646417408044,0.07509132,40914.0,40909.0,0.366696]
[1646417408045,0.061159,40913.0,40909.0,0.366696]
[1646417408249,0.183474,40913.0,40909.0,0.366696]
[1646417408444,0.183474,40913.0,40909.0,0.36587588]
[1646417408642,0.05,40912.0,40909.0,0.36587588]
[1646417408846,0.172315,40912.0,40909.0,0.36587588]
[1646417409744,0.472315,40912.0,40906.0,0.1131]
[1646417409944,0.172315,40912.0,40909.0,0.366786]
[1646417410142,0.21539059,40909.0,40906.0,0.1131]
[1646417410344,0.27815044,40909.0,40908.0,0.89514697]
[1646417411187,0.27815044,40909.0,40908.0,0.52836097]
[1646417412288,0.64493644,40909.0,40908.0,0.52836097]
[1646417412486,0.27815044,40909.0,40908.0,0.52836097]
[1646417412891,0.27815044,40909.0,40905.0,0.25]
[1646417412892,0.8,40908.0,40905.0,0.25]
[1646417413091,0.8,40908.0,40901.0,0.1]
[1646417413092,0.816786,40907.0,40901.0,0.1]
[1646417413293,0.748928,40906.0,40901.0,0.1]
[1646417413487,0.13695058,40904.0,40892.0,0.1246]
[1646417413690,0.05,40902.0,40892.0,0.1246]
[1646417413989,0.24282952,40893.0,40892.0,0.1246]
[1646417414189,0.49483107,40893.0,40891.0,0.01]
[1646417417845,0.49483107,40893.0,40887.0,0.0895836]
[1646417418099,0.49483107,40893.0,40887.0,0.1395836]
[1646417418301,0.91720607,40893.0,40883.0,0.7472]
[1646417418506,0.366786,40892.0,40882.0,0.2402]
[1646417418704,0.01001989,40891.0,40882.0,0.1246]
[1646417418901,0.398943,40890.0,40882.0,0.1246]
[1646417419301,0.3,40889.0,40881.0,0.01]
[1646417419500,0.366786,40888.0,40881.0,0.01]
[1646417419699,0.416786,40888.0,40886.0,0.042752]
[1646417419900,0.416786,40888.0,40881.0,0.01]
[1646417420100,0.01142534,40885.0,40881.0,0.01]
[1646417420301,0.061211,40882.0,40881.0,0.01]
[1646417420500,0.427997,40882.0,40881.0,0.01]
[1646417421301,0.05,40883.0,40881.0,0.376786]
[1646417421302,0.111212,40883.0,40881.0,0.376786]
[1646417421500,0.111212,40883.0,40881.0,0.01]
[1646417422336,0.111212,40883.0,40882.0,0.24478349]
[1646417422537,0.111212,40883.0,40881.0,0.01]
[1646417423538,0.111212,40883.0,40881.0,0.16]
[1646417424940,0.3,40882.0,40881.0,0.16]
[1646417425341,0.6,40881.0,40880.0,0.00023028]
[1646417425589,0.6,40881.0,40872.0,0.2228]
[1646417425590,0.15878259,40876.0,40872.0,0.2228]
[1646417425787,0.21999859,40876.0,40872.0,0.145]
[1646417425988,0.21999859,40876.0,40872.0,0.366786]
[1646417425989,0.31312925,40873.0,40872.0,0.366786]
[1646417426189,0.36312925,40873.0,40872.0,0.1]
[1646417426496,0.36312925,40873.0,40872.0,0.466786]
[1646417426688,0.36312925,40873.0,40872.0,0.1]
[1646417427288,0.37374698,40873.0,40872.0,0.1]
[1646417427489,0.37374698,40873.0,40871.0,0.01]
[1646417428689,0.366786,40872.0,40871.0,0.01]
[1646417428989,0.37374698,40873.0,40871.0,0.01]
[1646417429192,0.366786,40872.0,40871.0,0.01]
[1646417430470,0.06123499,40870.0,40860.0,0.118]
[1646417430669,0.061237,40867.0,40860.0,0.118]
[1646417430868,0.183709,40867.0,40860.0,0.118]
[1646417431069,0.233709,40867.0,40860.0,0.118]
[1646417431267,0.233709,40867.0,40859.0,0.41]
[1646417431470,0.172472,40867.0,40863.0,0.22188306]
[1646417431671,0.172472,40867.0,40859.0,0.41]
[1646417431672,0.061236,40866.0,40859.0,0.41]
[1646417431876,0.122472,40866.0,40861.0,0.00021366]
[1646417432071,0.05,40865.0,40861.0,0.00021366]
[1646417432473,0.05,40865.0,40862.0,0.366786]
[1646417432673,0.3260347,40873.0,40865.0,0.1]
[1646417432873,0.31312925,40873.0,40867.0,0.366786]
[1646417433296,0.31312925,40873.0,40869.0,0.6030184]
[1646417433496,0.31312925,40873.0,40870.0,0.366786]
[1646417433698,0.31312925,40873.0,40871.0,0.366786]
[1646417433897,0.31312925,40873.0,40870.0,0.366786]
[1646417434297,0.36312925,40873.0,40870.0,0.00020419]
[1646417434501,0.36312925,40873.0,40871.0,0.366786]
[1646417435200,0.36312925,40873.0,40867.0,0.05]
[1646417435400,0.36312925,40873.0,40870.0,0.00020419]
[1646417436399,0.36312925,40873.0,40871.0,0.366786]
[1646417436599,0.36312925,40873.0,40870.0,0.366786]
[1646417436836,0.05,40873.0,40870.0,0.366786]
[1646417440687,0.172424,40877.0,40872.0,0.366786]
[1646417441087,0.05,40877.0,40874.0,0.366786]
[1646417441286,0.05,40877.0,40872.0,0.366786]
[1646417441488,0.30649077,40876.0,40872.0,0.36700023]
[1646417441690,0.30649077,40876.0,40874.0,0.366786]
[1646417442302,0.30649077,40876.0,40875.0,0.366786]
[1646417442493,0.30649077,40876.0,40874.0,0.366975]
[1646417443093,0.30649077,40876.0,40873.0,0.00021422]
[1646417443695,0.30649077,40876.0,40871.0,0.366975]
[1646417443895,0.30649077,40876.0,40871.0,0.26924625]
[1646417444096,0.30649077,40876.0,40873.0,0.366975]
[1646417445136,0.05,40877.0,40873.0,0.366975]
[1646417445742,0.561206,40883.0,40875.0,0.366982]
[1646417445743,0.5,40883.0,40875.0,0.366982]
[1646417445938,0.061198,40882.0,40875.0,0.415882]
[1646417446139,0.27968826,40880.0,40877.0,0.366982]
[1646417446337,0.27968826,40880.0,40879.0,0.366982]
[1646417446738,0.27968826,40880.0,40879.0,0.466982]
[1646417446938,0.27968826,40880.0,40879.0,0.461982]
[1646417447138,0.27968826,40880.0,40879.0,0.361982]
[1646417447542,0.32968826,40880.0,40879.0,0.361982]
[1646417448085,0.32968826,40880.0,40875.0,0.05]
[1646417448487,0.32968826,40880.0,40873.0,0.15]
[1646417448686,0.061212,40878.0,40873.0,0.1]
[1646417448885,0.061212,40877.0,40874.0,0.366956]
[1646417449085,0.061212,40877.0,40874.0,0.416956]
[1646417449286,0.111212,40877.0,40875.0,0.1]
[1646417449486,0.111212,40877.0,40876.0,0.366956]
[1646417449685,0.05,40877.0,40876.0,0.466956]
[1646417450089,0.05,40877.0,40876.0,0.516956]
[1646417450887,0.05,40877.0,40876.0,0.15]
[1646417451288,0.05,40877.0,40876.0,0.416956]
[1646417451488,0.05,40877.0,40876.0,0.05]
[1646417451691,0.05,40877.0,40876.0,0.466956]
[1646417451932,0.05,40877.0,40876.0,0.516956]
[1646417452132,0.05,40877.0,40876.0,0.15]
[1646417452336,0.05,40877.0,40876.0,0.516956]
[1646417453934,0.05,40877.0,40876.0,0.15]
[1646417454334,0.05,40877.0,40876.0,0.05]
[1646417454935,0.05,40877.0,40876.0,0.3190223]
[1646417455341,0.05,40877.0,40876.0,0.4190223]
[1646417455604,0.05,40877.0,40876.0,0.41895026]
[1646417456206,0.05,40877.0,40876.0,0.46895026]
[1646417456507,0.05,40877.0,40876.0,0.15]
[1646417456708,0.05,40877.0,40876.0,0.05]
[1646417456911,0.05,40877.0,40876.0,0.41697]
[1646417457108,0.05,40877.0,40873.0,0.15]
[1646417458309,0.05,40877.0,40875.0,0.36697]
[1646417458509,0.05,40877.0,40874.0,0.36697]
[1646417458711,0.111216,40877.0,40875.0,0.1]
[1646417459008,0.111216,40877.0,40871.0,0.1242]
[1646417459208,0.061217,40876.0,40866.0,0.3]
[1646417459443,0.061217,40876.0,40870.0,0.00022912]
[1646417459444,0.19136921,40874.0,40870.0,0.00022912]
[1646417459845,0.05,40874.0,40870.0,0.00022912]
[1646417460043,0.05,40874.0,40871.0,0.36697]
[1646417460244,0.061218,40875.0,40871.0,0.36697]
[1646417460445,0.061218,40875.0,40872.0,0.1]
[1646417460650,0.061218,40875.0,40870.0,0.00022912]
[1646417460843,0.061218,40875.0,40871.0,0.36697]
[1646417461044,0.06122,40874.0,40871.0,0.36697]
[1646417461243,0.05,40874.0,40872.0,0.15]
[1646417461443,0.061218,40875.0,40872.0,0.15]
[1646417461643,0.061218,40873.0,40872.0,0.15]
[1646417462244,0.061218,40873.0,40872.0,0.05]
[1646417462443,0.061218,40873.0,40871.0,0.36697]
[1646417462845,0.061218,40873.0,40872.0,0.1]
[1646417463091,0.061218,40873.0,40872.0,0.15]
[1646417463487,0.061218,40873.0,40872.0,0.51697]
[1646417464088,0.061218,40873.0,40872.0,0.15]
[1646417464289,0.061218,40873.0,40872.0,0.05]
[1646417464491,0.061218,40873.0,40869.0,0.36697]
[1646417464688,0.061218,40873.0,40870.0,0.1]
[1646417465092,0.061218,40873.0,40871.0,0.05]
[1646417465492,0.061218,40873.0,40870.0,0.15]
[1646417465991,0.36697,40872.0,40870.0,0.05]
[1646417466191,0.36697,40872.0,40869.0,0.00022892]
[1646417466192,0.05,40871.0,40869.0,0.00022892]
[1646417466391,0.111225,40871.0,40865.0,0.269]
[1646417466590,0.111225,40871.0,40868.0,0.00022892]
[1646417467042,0.172448,40871.0,40865.0,0.219]
[1646417467240,0.3021656,40867.0,40866.0,0.36697]
[1646417467638,0.3021656,40867.0,40866.0,0.46697]
[1646417468240,0.3021656,40867.0,40866.0,0.51697]
[1646417469141,0.3021656,40867.0,40866.0,0.15]
[1646417469340,0.3021656,40867.0,40866.0,0.05]
[1646417469540,0.3021656,40867.0,40865.0,0.15]
[1646417469741,0.3021656,40867.0,40865.0,0.36249455]
[1646417470142,0.3021656,40867.0,40866.0,0.1]
[1646417470691,0.3021656,40867.0,40866.0,0.46697]
[1646417470896,0.12456383,40871.0,40866.0,0.46697]
[1646417471096,0.12456383,40871.0,40866.0,0.1]
[1646417471293,0.111225,40871.0,40867.0,0.36697]
[1646417471490,0.111225,40871.0,40867.0,0.41697]
[1646417471690,0.111225,40871.0,40866.0,0.10022788]
[1646417471691,0.111225,40871.0,40868.0,0.15]
[1646417471891,0.295611,40870.0,40866.0,0.00022788]
[1646417473597,0.295611,40870.0,40865.0,0.15]
[1646417473994,0.295611,40870.0,40866.0,0.00022788]
[1646417474944,0.295611,40870.0,40865.0,0.15]
[1646417475145,0.295611,40870.0,40866.0,0.00021946]
[1646417475343,0.295611,40870.0,40866.0,0.30021946]
[1646417475745,0.295611,40870.0,40867.0,0.1]
[1646417475944,0.295611,40870.0,40867.0,0.15]
[1646417476744,0.295611,40870.0,40867.0,0.05]
[1646417476945,0.295611,40870.0,40866.0,0.00021946]
[1646417477344,0.295611,40870.0,40865.0,0.15]
[1646417477546,0.295611,40870.0,40866.0,0.00021946]
[1646417478390,0.295611,40870.0,40865.0,0.15]
[1646417478793,0.295611,40870.0,40866.0,0.00021128]
[1646417478990,0.295611,40870.0,40867.0,0.367011]
[1646417479192,0.111225,40871.0,40867.0,0.367011]
[1646417479592,0.05,40871.0,40867.0,0.417011]
[1646417479792,0.51431071,40877.0,40868.0,0.1]
[1646417479992,0.51431071,40877.0,40869.0,0.3]
[1646417480294,0.56431071,40877.0,40869.0,0.35]
[1646417480691,0.56431071,40877.0,40870.0,0.1]
[1646417481489,0.51431071,40877.0,40870.0,0.1]
[1646417481691,0.5,40877.0,40871.0,0.417011]
[1646417481940,0.5,40877.0,40873.0,0.367011]
[1646417482341,0.5,40877.0,40875.0,0.367011]
[1646417482943,0.55,40877.0,40874.0,0.15]
[1646417483341,0.55,40877.0,40874.0,0.05]
[1646417483541,0.55,40877.0,40875.0,0.367011]
[1646417483743,0.55,40877.0,40871.0,0.367011]
[1646417483945,0.55,40877.0,40873.0,0.367011]
[1646417484341,0.55,40877.0,40874.0,0.467011]
[1646417484543,0.55,40877.0,40874.0,0.15]
[1646417485240,0.55,40877.0,40874.0,0.05]
[1646417485687,0.55,40877.0,40871.0,0.417011]
[1646417486089,0.55,40877.0,40873.0,0.367011]
[1646417486288,0.55,40877.0,40874.0,0.1]
[1646417486493,0.55,40877.0,40875.0,0.367011]
[1646417486697,0.55,40877.0,40874.0,0.15]
[1646417487092,0.55,40877.0,40876.0,0.367011]
[1646417487290,0.55,40877.0,40875.0,0.367011]
[1646417487692,0.55,40877.0,40869.0,0.367011]
[1646417488090,0.55,40877.0,40871.0,0.367011]
[1646417488289,0.55,40877.0,40872.0,0.1]
[1646417488490,0.061217,40875.0,40871.0,0.367011]
[1646417488690,0.061217,40875.0,40872.0,0.1]
[1646417488891,0.061217,40875.0,40869.0,0.367011]
[1646417489093,0.061217,40875.0,40870.0,0.1]
[1646417489340,0.061217,40875.0,40870.0,0.05]
[1646417489644,0.06122,40874.0,40870.0,0.05]
[1646417489842,0.06122,40874.0,40869.0,0.367011]
[1646417490041,0.06122,40874.0,40868.0,0.1644]
[1646417490640,0.111217,40875.0,40868.0,0.1644]
[1646417490842,0.061217,40875.0,40868.0,0.1644]
[1646417491543,0.17432757,40872.0,40868.0,0.1644]
[1646417491746,0.17432757,40872.0,40868.0,0.05]
[1646417491942,0.061222,40873.0,40867.0,0.367011]
[1646417492145,0.111217,40875.0,40867.0,0.367011]
[1646417492343,0.111217,40875.0,40868.0,0.1]
[1646417492744,0.061217,40875.0,40868.0,0.1]
[1646417492945,0.20994217,40875.0,40868.0,0.1]
[1646417493194,0.20994217,40875.0,40867.0,0.05]
[1646417493598,0.20994217,40875.0,40868.0,0.15]
[1646417493795,0.111218,40876.0,40868.0,0.15]
[1646417494002,0.05,40876.0,40868.0,0.15]
[1646417494196,0.56312231,40877.0,40868.0,0.15]
[1646417494996,0.56312231,40877.0,40868.0,0.145]
[1646417495199,0.55,40877.0,40868.0,0.145]
[1646417496398,0.611216,40877.0,40868.0,0.145]
[1646417497243,0.55,40877.0,40869.0,0.367011]
[1646417497542,0.55,40877.0,40870.0,0.1]
[1646417497747,0.55,40877.0,40871.0,0.367011]
[1646417498043,0.55,40877.0,40871.0,0.417011]
[1646417498244,0.5,40877.0,40873.0,0.367011]
[1646417498446,0.5,40877.0,40873.0,0.417011]
[1646417498641,0.5,40877.0,40872.0,0.1]
[1646417498844,0.5,40877.0,40873.0,0.367011]
[1646417499343,0.5,40877.0,40873.0,0.05]
[1646417499944,0.5,40877.0,40874.0,0.367011]
[1646417500146,0.55,40877.0,40870.0,0.367011]
[1646417500344,0.55,40877.0,40872.0,0.367011]
[1646417500607,0.55,40877.0,40870.0,0.367011]
[1646417500807,0.55,40877.0,40871.0,0.467011]
[1646417501007,0.55,40877.0,40869.0,0.15]
[1646417501207,0.5,40877.0,40869.0,0.15]
[1646417501806,0.061217,40876.0,40869.0,0.15]
[1646417502008,0.061217,40876.0,40869.0,0.05]
[1646417502215,0.061217,40876.0,40868.0,0.145]
[1646417502216,0.061217,40876.0,40868.0,0.195]
[1646417503107,0.061217,40876.0,40868.0,0.09704769]
[1646417503309,0.122435,40876.0,40868.0,0.09704769]
[1646417503508,0.19020862,40870.0,40869.0,0.367011]
[1646417503707,0.061222,40873.0,40869.0,0.467011]
[1646417504007,0.061222,40873.0,40869.0,0.1]
[1646417504208,0.061222,40873.0,40870.0,0.1]
[1646417505055,0.061222,40873.0,40868.0,0.09704769]